bitfinex-derivatives/quotes_SOLF0:USTF0_20250518
["timestamp","ask_amount","ask_price","bid_price","bid_amount"]
[1747602789416,82.2995474,167.58,167.49,66.16]
[1747602790414,72.1338,167.58,167.49,66.16]
[1747602790818,72.1338,167.58,167.49,72.1273]
[1747602791215,5.9666,167.52,167.49,72.1273]
[1747602791619,72.1338,167.58,167.5,5.9671]
[1747602792014,72.1338,167.58,167.49,66.16]
[1747602792417,5.9665,167.53,167.49,66.16]
[1747602792919,5.9666,167.52,167.49,66.16]
[1747602793418,5.9668,167.52,167.49,66.16]
[1747602798035,5.9663,167.53,167.49,72.1276]
[1747602798837,5.9663,167.53,167.5,5.9672]
[1747602800038,5.9659,167.54,167.5,5.9672]
[1747602800238,66.1,167.57,167.49,72.1275]
[1747602800539,5.9664,167.53,167.49,72.1275]
[1747602800739,66.1,167.57,167.49,72.1275]
[1747602801238,5.9664,167.53,167.49,72.1275]
[1747602802536,66.1,167.57,167.49,72.1275]
[1747602803238,5.9664,167.53,167.49,72.1275]
[1747602803439,5.9664,167.53,167.5,5.9672]
[1747602803640,5.9658,167.54,167.49,66.16]
[1747602803940,5.9658,167.54,167.5,5.9669]
[1747602804142,5.9649,167.57,167.49,132.24]
[1747602804533,5.9649,167.57,167.53,5.9659]
[1747602804833,5.9649,167.57,167.54,66.16]
[1747602805338,5.9649,167.57,167.54,72.1256]
[1747602807340,5.9645,167.58,167.55,5.9654]
[1747602807539,5.9645,167.58,167.54,66.16]
[1747602807941,5.9645,167.58,167.54,72.1256]
[1747602808742,66.06,167.61,167.55,5.9653]
[1747602809137,66.06,167.61,167.54,66.16]
[1747602809337,5.9647,167.58,167.54,72.1257]
[1747602809645,66.06,167.61,167.54,72.1257]
[1747602810641,5.9647,167.58,167.54,72.1257]
[1747602811941,5.9649,167.57,167.54,72.1257]
[1747602812144,66.06,167.61,167.54,66.16]
[1747602812843,5.9648,167.57,167.54,72.1258]
[1747602813744,5.9645,167.58,167.54,72.1258]
[1747602814841,66.06,167.61,167.54,72.1258]
[1747602816743,5.9646,167.58,167.54,72.1258]
[1747602818042,5.9646,167.58,167.55,5.9654]
[1747602818347,5.9646,167.58,167.54,66.16]
[1747602818546,66.06,167.61,167.54,66.16]
[1747602819147,5.9647,167.58,167.54,72.1258]
[1747602823549,5.9647,167.58,167.55,5.9654]
[1747602823940,4.0992,167.63,167.54,72.66139718]
[1747602824143,6.50139718,167.61,167.54,72.66139718]
[1747602824341,5.9643,167.59,167.54,72.66139718]
[1747602824644,6.50139718,167.61,167.56,5.9651]
[1747602825751,5.9637,167.6,167.56,5.9651]
[1747602830553,5.9637,167.6,167.57,66.02]
[1747602832455,5.9641,167.59,167.57,66.02]
[1747602834157,5.9638,167.6,167.57,66.02]
[1747602835156,5.9641,167.59,167.57,66.02]
[1747602842463,6.50139718,167.61,167.57,66.02]
[1747602843062,5.9639,167.6,167.57,66.02]
[1747602843255,6.50139718,167.61,167.57,66.02]
[1747602843961,5.9637,167.6,167.57,66.02]
[1747602844357,6.50139718,167.61,167.57,66.02]
[1747602845563,5.9637,167.6,167.57,66.02]
[1747602846166,5.9641,167.59,167.57,66.02]
[1747602846559,76.50059718,167.63,167.57,66.02]
[1747602847167,5.9639,167.6,167.57,66.02]
[1747602847558,76.50059718,167.63,167.57,66.02]
[1747602847763,5.964,167.6,167.57,66.02]
[1747602850363,5.964,167.6,167.57,71.9847]
[1747602853466,5.9634,167.61,167.58,5.9643]
[1747602853667,5.9634,167.61,167.57,66.02]
[1747602854367,5.9634,167.61,167.57,71.9845]
[1747602854870,5.9638,167.6,167.57,66.02]
[1747602857374,5.9644,167.58,167.57,66.02]
[1747602857576,10.60059718,167.63,167.57,66.02]
[1747602858170,5.9639,167.6,167.57,66.02]
[1747602858972,5.9641,167.59,167.57,66.02]
[1747602860878,5.9639,167.6,167.57,66.02]
[1747602861179,5.9639,167.6,167.57,71.9847]
[1747602861373,5.9639,167.6,167.57,66.02]
[1747602862971,5.9641,167.59,167.57,66.02]
[1747602865680,5.9638,167.6,167.57,66.02]
[1747602866179,6.50139718,167.64,167.57,66.02]
[1747602867275,5.9639,167.6,167.57,66.02]
[1747602867487,5.9639,167.6,167.57,71.9847]
[1747602867780,5.9639,167.6,167.57,66.02]
[1747602868877,5.9632,167.62,167.58,5.9643]
[1747602869182,6.50139718,167.65,167.58,5.9643]
[1747602869382,5.9632,167.62,167.58,5.9643]
[1747602870785,5.9634,167.61,167.57,144.22589718]
[1747602870979,13.93765141,167.66,167.57,137.18932892]
[1747602870980,6.50139718,167.64,167.57,137.18932892]
[1747602871486,5.9635,167.61,167.57,143.15382892]
[1747602872889,5.9635,167.61,167.58,5.9643]
[1747602878089,5.9635,167.61,167.57,144.16599718]
[1747602878290,5.9635,167.61,167.57,138.20139718]
[1747602878993,6.50139718,167.64,167.57,144.16609718]
[1747602880195,5.9636,167.61,167.57,137.6647]
[1747602880495,5.9636,167.61,167.58,5.9644]
[1747602881397,6.50139718,167.64,167.58,5.9644]
[1747602881995,6.50139718,167.64,167.59,5.9639]
[1747602882397,1.8842,167.66,167.59,5.9639]
[1747602882597,6.50139718,167.65,167.59,5.9639]
[1747602883284,5.9629,167.63,167.59,5.9639]
[1747602883795,5.963,167.62,167.59,5.9639]
[1747602884602,5.963,167.62,167.58,5.9643]
[1747602885893,5.963,167.62,167.59,5.964]
[1747602886091,5.9627,167.63,167.59,5.964]
[1747602886294,6.50139718,167.65,167.59,5.964]
[1747602886593,5.9629,167.63,167.59,5.964]
[1747602887701,5.9623,167.64,167.58,6.50139718]
[1747602888300,5.9623,167.64,167.6,5.9635]
[1747602888502,5.9623,167.64,167.61,65.72]
[1747602889903,5.9627,167.63,167.61,65.72]
[1747602890298,6.50139718,167.66,167.61,65.72]
[1747602890607,5.9625,167.64,167.61,65.72]
[1747602892502,5.9626,167.63,167.61,65.72]
[1747602893008,5.9626,167.63,167.61,71.6833]
[1747602894404,5.9626,167.63,167.61,65.72]
[1747602894605,6.50139718,167.64,167.61,65.72]
[1747602895304,5.963,167.62,167.61,65.72]
[1747602897909,5.9627,167.63,167.61,65.72]
[1747602898710,5.9623,167.64,167.61,65.72]
[1747602900319,5.9626,167.63,167.61,65.72]
[1747602900615,6.50139718,167.66,167.61,65.72]
[1747602900821,6.50139718,167.66,167.61,71.6833]
[1747602901623,5.9623,167.64,167.61,71.6833]
[1747602901822,6.50139718,167.64,167.58,5.42932892]
[1747602902021,6.50139718,167.64,167.6,65.52]
[1747602902217,1.9622,167.67,167.6,65.52]
[1747602902218,6.50139718,167.66,167.61,5.9633]
[1747602902520,6.50139718,167.66,167.6,65.52]
[1747602902721,6.50139718,167.64,167.6,65.52]
[1747602903422,5.9629,167.63,167.6,65.52]
[1747602904123,5.963,167.62,167.6,65.52]
[1747602904317,6.50139718,167.64,167.6,65.52]
[1747602904621,6.50139718,167.66,167.6,71.4836]
[1747602905117,5.9616,167.66,167.62,5.9629]
[1747602905315,7.51425423,167.67,167.6,65.52]
[1747602906122,5.9625,167.64,167.6,71.4834]
[1747602907128,5.9627,167.63,167.6,65.52]
[1747602907423,6.50139718,167.64,167.6,65.52]
[1747602907824,5.9633,167.61,167.6,65.52]
[1747602908626,6.50139718,167.62,167.6,65.52]
[1747602909626,5.9633,167.61,167.6,65.52]
[1747602911925,5.965,167.57,167.56,65.52]
[1747602913127,12.46639718,167.57,167.56,65.52]
[1747602914526,5.9655,167.55,167.54,214.79484369]
[1747602916631,5.9665,167.52,167.51,65.54]
[1747602919240,5.9675,167.5,167.47,5.42932892]
[1747602919443,5.9675,167.5,167.47,70.96932892]
[1747602919937,5.967,167.51,167.47,76.93762892]
[1747602920236,3.9271,167.56,167.47,70.96932892]
[1747602920437,3.9271,167.56,167.48,5.9679]
[1747602921237,5.9668,167.52,167.48,5.9679]
[1747602921844,5.967,167.51,167.47,71.5082]
[1747602922032,5.967,167.51,167.47,65.54]
[1747602923041,5.9667,167.52,167.48,5.9679]
[1747602923437,3.9271,167.56,167.47,65.54]
[1747602923638,3.9271,167.56,167.47,71.5081]
[1747602924542,65.42,167.55,167.47,71.5081]
[1747602925437,5.9673,167.5,167.47,71.5081]
[1747602925643,3.9271,167.56,167.47,71.5081]
[1747602925835,65.42,167.55,167.47,71.5081]
[1747602926035,5.9671,167.51,167.47,71.5081]
[1747602926332,65.42,167.55,167.47,71.5081]
[1747602929450,3.9271,167.56,167.47,71.5081]
[1747602929647,5.9673,167.5,167.47,71.5081]
[1747602933953,5.9673,167.5,167.47,65.54]
[1747602938267,5.9676,167.49,167.47,65.54]
[1747602938467,65.4,167.55,167.47,65.54]
[1747602939068,65.4,167.55,167.47,71.5082]
[1747602939668,6.50679827,167.54,167.47,71.5082]
[1747602940164,5.9673,167.5,167.47,71.5082]
[1747602941070,5.9673,167.5,167.47,65.54]
[1747602942670,6.50679827,167.54,167.47,65.54]
[1747602943070,5.9674,167.5,167.47,71.5083]
[1747602944571,5.9674,167.5,167.47,78.01509827]
[1747602944975,5.967,167.51,167.48,5.9679]
[1747602945368,5.967,167.51,167.47,72.04679827]
[1747602945574,5.967,167.51,167.47,78.01499827]
[1747602948377,5.967,167.51,167.48,5.968]
[1747602948877,5.967,167.51,167.47,72.04679827]
[1747602949679,5.967,167.51,167.47,78.01499827]
[1747602950472,5.9659,167.54,167.49,6.50679827]
[1747602950677,5.9659,167.54,167.52,6.50679827]
[1747602951372,5.9656,167.55,167.52,6.50679827]
[1747602951875,5.9659,167.54,167.52,6.50679827]
[1747602953375,5.9656,167.55,167.52,12.47329827]
[1747602953979,7.61845423,167.6,167.54,6.50679827]
[1747602954180,5.55205423,167.6,167.55,65.38]
[1747602954477,11.51555423,167.61,167.57,5.9646]
[1747602955583,11.51555423,167.61,167.58,6.50679827]
[1747602955774,5.55205423,167.61,167.58,5.9642]
[1747602956077,5.55205423,167.61,167.59,65.38]
[1747602956870,5.55205423,167.61,167.6,5.9637]
[1747602957371,134.94217092,167.65,167.61,5.9631]
[1747602957983,140.90407092,167.65,167.61,5.9631]
[1747602960181,5.9623,167.64,167.59,65.38]
[1747602960380,5.9623,167.64,167.6,5.9636]
[1747602960783,5.9623,167.64,167.59,65.38]
[1747602960974,140.90417092,167.65,167.61,5.9633]
[1747602962585,5.9623,167.64,167.6,5.9636]
[1747602964785,140.90417092,167.65,167.61,5.9633]
[1747602965288,5.962,167.65,167.61,5.9633]
[1747602965589,5.962,167.65,167.61,71.1033]
[1747602968076,5.962,167.65,167.62,5.9629]
[1747602968281,5.7465,167.7,167.63,65.14]
[1747602968481,3.8171,167.7,167.63,65.14]
[1747602969085,5.9611,167.68,167.64,5.962]
[1747602969287,1.9287,167.7,167.63,65.14]
[1747602969486,65.12,167.73,167.63,65.14]
[1747602969989,5.9603,167.7,167.66,5.9615]
[1747602970285,5.9603,167.7,167.67,65.14]
[1747602970787,5.9598,167.71,167.67,71.1011]
[1747602971190,5.9658,167.74,167.67,65.14]
[1747602971992,5.9592,167.73,167.68,5.9606]
[1747602972189,65.08,167.78,167.69,65.08]
[1747602972694,65.08,167.78,167.7,5.9598]
[1747602972892,65.08,167.78,167.71,65.12]
[1747602973490,5.55205423,167.79,167.71,65.12]
[1747602973892,5.9589,167.74,167.71,65.12]
[1747602974192,5.55205423,167.79,167.71,65.12]
[1747602974387,5.9591,167.73,167.71,65.12]
[1747602977993,5.9588,167.74,167.71,65.12]
[1747602979392,5.9583,167.76,167.71,65.12]
[1747602980390,5.9583,167.76,167.72,5.9591]
[1747602980592,5.9583,167.76,167.72,16.11403149]
[1747602980905,5.8996,167.8,167.67,3.8906]
[1747602981092,5.8996,167.8,167.68,130.1]
[1747602981292,5.8996,167.8,167.69,65.0]
[1747602982096,5.9593,167.73,167.69,70.9602]
[1747602982493,5.8996,167.8,167.69,70.9602]
[1747602982694,5.9593,167.73,167.69,70.9602]
[1747602983094,5.8996,167.8,167.69,70.9602]
[1747602983304,5.9597,167.72,167.69,65.0]
[1747602984599,5.9597,167.72,167.69,70.9605]
[1747602985298,5.9597,167.72,167.69,65.0]
[1747602986694,5.9598,167.71,167.69,65.0]
[1747602986997,5.8996,167.8,167.69,65.0]
[1747602987398,5.9597,167.72,167.69,65.0]
[1747602988299,5.9598,167.71,167.69,65.0]
[1747602988503,5.8996,167.8,167.67,3.8906]
[1747602988800,5.9605,167.69,167.68,65.1]
[1747602988995,75.09493149,167.74,167.65,580.34]
[1747602989199,70.8588,167.73,167.65,580.34]
[1747602989596,5.9624,167.64,167.6,8.0208]
[1747602989796,10.15493149,167.71,167.61,130.02]
[1747602989994,10.15493149,167.71,167.62,65.08]
[1747602990201,75.23493149,167.71,167.61,65.08]
[1747602990603,5.963,167.62,167.61,65.08]
[1747602993910,75.23493149,167.71,167.61,65.08]
[1747602993911,64.92,167.7,167.61,65.08]
[1747602994108,64.92,167.7,167.61,130.0]
[1747602994607,5.9619,167.65,167.61,135.9632]
[1747602995908,64.9,167.7,167.59,5.9637]
[1747602996103,64.9,167.7,167.6,64.92]
[1747602996505,5.9627,167.63,167.6,64.92]
[1747602996709,64.9,167.7,167.6,70.8836]
[1747602996906,64.9,167.7,167.6,64.92]
[1747602997407,5.9612,167.67,167.6,64.92]
[1747602997604,64.9,167.72,167.6,64.92]
[1747602997803,70.6511,167.73,167.62,10.15493149]
[1747602998000,5.9607,167.69,167.65,5.9618]
[1747602998201,70.6511,167.73,167.66,64.92]
[1747602999411,5.9607,167.69,167.66,64.92]
[1747602999605,70.6511,167.73,167.66,64.92]
[1747603000307,5.9607,167.69,167.66,70.8814]
[1747603000909,5.9602,167.7,167.66,70.8814]
[1747603001108,5.9602,167.7,167.67,5.9611]
[1747603002510,3.8501,167.73,167.67,64.88]
[1747603002809,207.25745195,167.77,167.67,64.88]
[1747603003010,5.9591,167.73,167.69,5.9604]
[1747603003209,5.9591,167.73,167.7,64.92]
[1747603004507,5.9595,167.72,167.7,64.92]
[1747603004714,266.64774359,167.77,167.69,64.9]
[1747603004915,266.64774359,167.77,167.67,64.9]
[1747603005717,129.74,167.76,167.67,64.9]
[1747603006016,134.85604359,167.77,167.67,64.9]
[1747603006217,3.9114,167.78,167.7,10.15493149]
[1747603006406,3.9114,167.78,167.71,64.9]
[1747603006611,3.9114,167.78,167.72,64.84]
[1747603006910,5.9586,167.75,167.72,64.84]
[1747603007804,5.9586,167.75,167.72,64.9]
[1747603009114,3.9114,167.78,167.7,5.9598]
[1747603009319,64.84,167.81,167.71,64.9]
[1747603010517,5.957,167.79,167.71,70.8597]
[1747603010718,68.7307,167.82,167.71,70.8597]
[1747603012522,5.9583,167.76,167.71,70.8597]
[1747603012815,10.15493149,167.8,167.68,5.8441]
[1747603013015,5.9593,167.73,167.69,129.74]
[1747603013218,10.15493149,167.8,167.69,129.74]
[1747603013409,10.15493149,167.8,167.69,135.7004]
[1747603013610,10.15493149,167.8,167.7,64.82]
[1747603013817,64.9,167.81,167.7,64.82]
[1747603015125,5.9593,167.73,167.7,64.82]
[1747603016441,64.9,167.81,167.69,64.9]
[1747603016739,64.9,167.81,167.7,64.82]
[1747603016930,64.9,167.81,167.71,5.9598]
[1747603018635,5.9587,167.74,167.71,5.9598]
[1747603019137,5.9582,167.76,167.72,5.9592]
[1747603019338,64.9,167.81,167.73,64.9]
[1747603019635,5.9587,167.74,167.73,64.9]
[1747603020639,64.9,167.81,167.73,64.9]
[1747603021639,5.9587,167.74,167.73,64.9]
[1747603025243,64.9,167.81,167.73,64.9]
[1747603025542,68.7307,167.82,167.73,64.9]
[1747603025842,5.9583,167.76,167.73,70.859]
[1747603027143,5.9583,167.76,167.74,64.8]
[1747603030849,5.9578,167.77,167.74,64.8]
[1747603031051,1.9197,167.82,167.74,64.8]
[1747603031552,5.958,167.76,167.74,64.8]
[1747603032551,5.9583,167.75,167.74,64.8]
[1747603033546,5.9581,167.76,167.74,64.8]
[1747603035462,5.9583,167.75,167.74,64.8]
[1747603035954,1.9197,167.82,167.74,64.8]
[1747603036858,1.9197,167.82,167.73,70.8588]
[1747603037059,5.9579,167.77,167.74,64.78]
[1747603037359,1.9197,167.82,167.74,64.78]
[1747603037553,5.9572,167.79,167.74,64.78]
[1747603037954,1.9197,167.82,167.74,64.78]
[1747603038458,1.9197,167.82,167.75,5.9581]
[1747603038651,5.9572,167.79,167.75,5.9581]
[1747603039455,5.9572,167.79,167.76,5.958]
[1747603039656,5.9572,167.79,167.77,64.8]
[1747603040063,65.74,167.8,167.69,64.8]
[1747603040361,1.8785,167.78,167.69,64.8]
[1747603040563,5.9597,167.72,167.69,70.16546671]
[1747603041065,5.9593,167.73,167.69,70.16546671]
[1747603041261,1.8785,167.78,167.69,70.16546671]
[1747603041458,5.9579,167.77,167.72,5.9592]
[1747603041659,65.7,167.82,167.73,64.78]
[1747603042758,5.9587,167.74,167.73,64.78]
[1747603044463,5.9583,167.76,167.73,64.78]
[1747603045267,5.9583,167.75,167.73,64.78]
[1747603045863,5.50970836,167.8,167.73,64.78]
[1747603046868,5.9586,167.75,167.73,64.78]
[1747603049773,5.958,167.77,167.73,64.78]
[1747603050371,5.958,167.77,167.73,70.7389]
[1747603050571,5.958,167.76,167.73,70.7389]
[1747603051572,5.9576,167.78,167.74,5.9587]
[1747603051760,5.50970836,167.8,167.74,5.9587]
[1747603052165,5.9576,167.78,167.74,5.9587]
[1747603053374,5.9577,167.77,167.74,5.9587]
[1747603056078,5.9577,167.77,167.73,70.7389]
[1747603056377,5.9577,167.77,167.73,64.78]
[1747603057578,5.9577,167.77,167.74,5.9587]
[1747603060673,5.9574,167.78,167.74,5.9587]
[1747603061378,5.9574,167.78,167.75,5.9583]
[1747603061578,5.9577,167.77,167.73,64.78]
[1747603062577,5.9577,167.77,167.74,5.9586]
[1747603063073,5.9574,167.78,167.74,5.9586]
[1747603063278,1.8876,167.83,167.73,64.78]
[1747603063582,7.39730836,167.83,167.73,64.78]
[1747603063773,5.9569,167.8,167.76,5.958]
[1747603063975,7.39730836,167.83,167.77,64.92]
[1747603065681,5.957,167.79,167.77,64.92]
[1747603074290,5.9565,167.81,167.77,70.8775]
[1747603074688,5.9565,167.81,167.77,64.92]
[1747603074889,5.9565,167.81,167.77,70.8775]
[1747603075990,5.9565,167.81,167.78,5.9572]
[1747603081102,134.80812513,167.84,167.78,5.9572]
[1747603081299,3.8272,167.86,167.77,64.92]
[1747603082506,3.8272,167.86,167.78,5.9571]
[1747603083104,5.9561,167.82,167.78,5.9571]
[1747603083894,5.9563,167.81,167.77,70.8775]
[1747603084100,5.9563,167.81,167.77,64.92]
[1747603084398,5.956,167.82,167.77,64.92]
[1747603084607,3.8272,167.86,167.77,64.92]
[1747603085100,1.9238,167.88,167.77,64.92]
[1747603085601,5.9549,167.85,167.77,64.92]
[1747603085802,1.9238,167.88,167.77,64.92]
[1747603086105,5.9549,167.85,167.81,5.956]
[1747603086305,5.9549,167.85,167.82,64.9]
[1747603087008,5.9552,167.84,167.82,64.9]
[1747603088608,5.9548,167.85,167.82,64.9]
[1747603089106,1.9238,167.88,167.82,64.9]
[1747603089702,5.9551,167.85,167.82,64.9]
[1747603090209,5.9551,167.85,167.82,70.8558]
[1747603091110,5.9551,167.85,167.82,64.9]
[1747603092007,5.9551,167.85,167.82,70.8558]
[1747603094796,5.9551,167.85,167.82,64.9]
[1747603095609,5.9551,167.85,167.82,71.38104467]
[1747603097002,5.9551,167.85,167.82,77.33684467]
[1747603100310,5.9553,167.84,167.82,71.38104467]
[1747603101411,5.9549,167.85,167.82,77.33684467]
[1747603103007,5.9553,167.84,167.82,71.38104467]
[1747603103614,5.9549,167.85,167.82,77.33684467]
[1747603104011,1.9238,167.88,167.82,71.38104467]
[1747603104209,5.9552,167.84,167.82,71.38104467]
[1747603104515,1.9238,167.88,167.82,64.9]
[1747603105515,5.9554,167.84,167.82,64.9]
[1747603106812,5.9555,167.83,167.82,64.9]
[1747603107316,1.9238,167.88,167.82,64.9]
[1747603107612,5.9554,167.84,167.82,64.9]
[1747603107813,1.9238,167.88,167.82,64.9]
[1747603109123,5.9551,167.85,167.82,70.8558]
[1747603111820,5.9552,167.84,167.82,64.9]
[1747603112212,5.9549,167.85,167.82,64.9]
[1747603113121,5.9552,167.84,167.82,64.9]
[1747603114419,5.9549,167.85,167.82,64.9]
[1747603114824,5.9549,167.85,167.82,70.8558]
[1747603115919,5.9549,167.85,167.82,64.9]
[1747603116119,5.9549,167.85,167.82,71.38104467]
[1747603116724,5.9552,167.84,167.82,64.9]
[1747603118224,5.9549,167.85,167.82,70.8558]
[1747603118921,5.9552,167.84,167.82,64.9]
[1747603119220,1.9238,167.88,167.82,64.9]
[1747603119524,5.9549,167.85,167.82,64.9]
[1747603121528,5.9549,167.85,167.82,70.8558]
[1747603123325,5.9549,167.85,167.82,64.9]
[1747603124219,5.9552,167.84,167.82,64.9]
[1747603124522,6.48104467,167.87,167.82,64.9]
[1747603124922,1.9238,167.88,167.82,64.9]
[1747603125423,5.955,167.85,167.82,64.9]
[1747603126520,5.955,167.85,167.82,77.33664467]
[1747603127224,5.9546,167.86,167.83,5.9555]
[1747603127724,5.9538,167.88,167.84,5.9548]
[1747603129726,5.9542,167.87,167.84,5.9548]
[1747603130227,74.15610836,167.91,167.83,6.48104467]
[1747603130526,6.48104467,167.89,167.83,6.48104467]
[1747603131022,5.9548,167.86,167.83,6.48104467]
[1747603131922,5.9548,167.85,167.84,64.7]
[1747603134831,71.16104467,167.9,167.84,64.7]
[1747603135431,5.9545,167.86,167.84,64.7]
[1747603136036,74.13610836,167.91,167.84,77.13594467]
[1747603136632,5.9541,167.87,167.84,77.13594467]
[1747603138439,9.47610836,167.91,167.84,64.7]
[1747603138635,6.48104467,167.9,167.84,64.7]
[1747603139134,9.47610836,167.91,167.84,64.7]
[1747603139332,15.95715303,167.91,167.84,64.7]
[1747603140636,5.9541,167.87,167.84,70.655]
[1747603143137,5.9545,167.86,167.84,70.655]
[1747603144440,5.9545,167.86,167.84,64.7]
[1747603144638,5.9548,167.85,167.84,64.7]
[1747603150351,5.9546,167.86,167.84,64.7]
[1747603150942,15.95715303,167.91,167.84,64.7]
[1747603151143,10.44744467,167.91,167.84,64.7]
[1747603151650,5.9548,167.85,167.84,64.7]
[1747603152844,5.9546,167.86,167.84,64.7]
[1747603157046,5.9546,167.86,167.84,70.6551]
[1747603157245,9.47610836,167.91,167.85,6.48104467]
[1747603157644,5.954,167.88,167.85,12.43564467]
[1747603157846,9.47610836,167.91,167.84,64.7]
[1747603158044,6.48104467,167.9,167.84,64.7]
[1747603158346,5.9543,167.87,167.84,70.655]
[1747603158646,9.47610836,167.91,167.85,6.48104467]
[1747603158844,5.9537,167.89,167.85,12.43564467]
[1747603159047,9.47610836,167.91,167.85,12.43564467]
[1747603159551,5.954,167.88,167.85,12.43564467]
[1747603164045,5.954,167.88,167.85,6.48104467]
[1747603164647,5.954,167.88,167.85,12.43574467]
[1747603164844,5.954,167.88,167.85,6.48104467]
[1747603165149,5.954,167.88,167.85,12.43584467]
[1747603167253,5.9531,167.9,167.85,71.06104467]
[1747603167550,5.9531,167.9,167.87,6.48104467]
[1747603167753,5.9531,167.9,167.88,64.62]
[1747603169153,11.46230836,167.92,167.88,70.5736]
[1747603169354,5.50970836,167.92,167.88,70.5736]
[1747603169654,5.50970836,167.92,167.88,64.62]
[1747603169856,5.953,167.91,167.88,64.62]
[1747603171261,5.50970836,167.92,167.91,5.9527]
[1747603171458,5.50970836,167.92,167.91,12.43374467]
[1747603172759,5.50970836,167.92,167.9,12.43394467]
[1747603173360,5.50970836,167.92,167.91,5.9527]
[1747603175761,7.34627781,167.96,167.93,5.9517]
[1747603175958,5.56927814,167.99,167.94,71.10104467]
[1747603176159,5.56927814,167.99,167.95,64.62]
[1747603176458,5.9504,167.98,167.95,64.62]
[1747603177158,5.9506,167.97,167.95,64.62]
[1747603184270,5.9503,167.98,167.95,64.62]
[1747603184566,6.48104467,168.02,167.96,6.48104467]
[1747603184763,5.9501,167.99,167.96,6.48104467]
[1747603185161,72.90204467,168.04,167.96,6.48104467]
[1747603185368,5.9503,167.98,167.96,6.48104467]
[1747603186766,72.90204467,168.04,167.96,6.48104467]
[1747603188173,5.9505,167.98,167.96,6.48104467]
[1747603189072,1.881,168.04,167.96,6.48104467]
[1747603189372,1.881,168.04,167.98,6.48104467]
[1747603189573,1.881,168.04,167.99,64.52]
[1747603189975,5.9498,168.0,167.99,64.52]
[1747603192775,5.9492,168.01,167.99,64.52]
[1747603193476,5.9495,168.0,167.99,64.52]
[1747603197174,5.9491,168.02,167.99,64.52]
[1747603197777,6.48104467,168.02,167.92,5.8533]
[1747603197978,6.48104467,168.02,167.93,64.52]
[1747603198275,5.9488,168.02,167.97,6.48104467]
[1747603198478,8.36204467,168.04,167.98,64.52]
[1747603202169,5.9494,168.01,167.98,64.52]
[1747603203683,5.9495,168.0,167.98,64.52]
[1747603206085,5.9498,167.99,167.98,64.52]
[1747603216394,5.9498,167.99,167.98,71.00104467]
[1747603218093,5.9498,167.99,167.98,70.96104467]
[1747603219794,5.9496,168.0,167.98,70.96104467]
[1747603220594,5.9498,167.99,167.98,70.96104467]
[1747603221700,5.9496,168.0,167.98,70.96104467]
[1747603222897,5.9498,167.99,167.98,70.96104467]
[1747603223603,5.9498,167.99,167.98,64.48]
[1747603228499,5.9496,168.0,167.98,64.48]
[1747603228700,6.48104467,168.05,167.98,64.48]
[1747603229705,5.9498,168.0,167.98,64.48]
[1747603231600,13.812423,168.08,167.99,6.46614519]
[1747603231801,78.25235972,168.08,167.99,6.46608191]
[1747603232203,5.9483,168.04,168.0,5.9492]